Cogmind - Beta 16.1 @@@ ROGUE MODE // 2026.01.30 @ 20:55:42 Player: Kyzrati Result: Destroyed by 1H-Q33(R) with Subdweller Machine Gun Performance ------------- Evolutions (0) 0 Regions Visited (2) 400 Robots Destroyed (32) 160 Value Destroyed (887) 887 Prototype IDs (3) 60 Alien Tech Used (0) 0 Bonus (0) 0 TOTAL SCORE: 1507 Bonus ------- None Cogmind --------- Core Integrity 0/250 Matter 188/300 Energy 230/250 System Corruption 0% Temperature Cool (0) Movement Treading (260) Ox1 Location -10/Subcaves Parts ------- > --- POWER (1) -------- Ion Engine > --- PROPULSION (2) --- Spiked Treads Wheel > --- UTILITY (2) ------ Large Storage Unit Seismic Detector > --- WEAPON (2) ------- Subdweller Beam Cannon Battle Cannon > --- INVENTORY (15) --- Ion Engine Aluminum Leg Disposable Heat Sink Makeshift Light Armor Plating Battle Rifle Battle Rifle Rocket Launcher Rocket Launcher Rocket Launcher Mining Laser Hammer Heavy Hammer Peak State ------------ > --- POWER ------------ Ion Engine > --- PROPULSION ------- Light Treads Spiked Treads > --- UTILITY ---------- Large Storage Unit Makeshift Light Armor Plating > --- WEAPON ----------- Battle Rifle Battle Cannon > --- INVENTORY -------- Ion Engine Aluminum Leg Wheel Disposable Heat Sink Seismic Detector Subdweller Beam Cannon Battle Rifle Battle Cannon Rocket Launcher Rocket Launcher Rocket Launcher Mining Laser Hammer Heavy Hammer [Rating: 15] Favorites ----------- Power Ion Engine Engine Ion Engine Propulsion Light Treads Treads Light Treads Leg Aluminum Leg Wheel Wheel Utility Seismic Detector Device Seismic Detector Storage Large Storage Unit Protection Makeshift Light Armor Plating Weapon Battle Cannon Energy Gun Small Laser Energy Cannon Subdweller Beam Cannon Ballistic Gun Light Assault Rifle Ballistic Cannon Battle Cannon Launcher Grenade Launcher Impact Weapon Heavy Hammer Build | -11 -10 -10 ------- Run | Yrd Mat Sub Slots Evolved . | . . . Power . | . . . Propulsion . | . . . Utility . | . . . Weapon . | . . . Parts Attached 26 | 7 8 11 Power 3 | 1 1 1 Engine 3 | 1 1 1 Core . | . . . Reactor . | . . . Propulsion 5 | 2 . 3 Treads 3 | 2 . 1 Leg 1 | . . 1 Wheel 1 | . . 1 Hover . | . . . Flight . | . . . Utility 7 | 2 3 2 Device 3 | 1 1 1 Storage 3 | 1 2 . Processor . | . . . Hackware . | . . . Protection 1 | . . 1 Artifact . | . . . Weapon 11 | 2 4 5 Energy Gun 1 | 1 . . Energy Cannon 1 | . . 1 Ballistic Gun 4 | 1 1 2 Ballistic Cannon 2 | . . 2 Launcher 1 | . 1 . Special Weapon . | . . . Impact Weapon 2 | . 2 . Slashing Weapon . | . . . Piercing Weapon . | . . . Special Melee Weapon . | . . . Unidentified Prototypes . | . . . Parts Lost 3 | . . 3 Power . | . . . Propulsion 2 | . . 2 Utility . | . . . Weapon 1 | . . 1 Highest Loss Streak 3 | . . 3 To Critical Strikes . | . . . Average Backups 12 | 2 11 13 Power . | . 1 1 Propulsion 2 | 1 3 2 Utility 1 | . 1 1 Weapon 7 | 1 5 8 Tool/Special . | . . . Unused Backups 11 | . 3 8 Power . | . . . Propulsion 2 | . 1 1 Utility 1 | . 1 . Weapon 8 | . 1 7 Tool/Special . | . . . Average Slot Usage (%) 99 | . 100 99 Engine 14 | . 14 14 Treads 24 | . 28 22 Wheel 3 | . . 4 Device 13 | . 14 12 Storage 14 | . 14 14 Energy Gun 1 | . 5 . Ballistic Gun 15 | . 20 14 Ballistic Cannon 7 | . . 10 Impact Weapon 2 | . 1 3 Peak Build Rating 15 | 7 9 15 Average Rating 10 | 5 7 11 On Entrance 5 | 1 7 9 Avg Prop Armor Cover (%) 11 | . . 11 Naked Turns . | . . . Heaviest Build 37 | 11 30 37 Greatest Support 40 | 40 40 40 Greatest Overweight (x) 3 | . . 3 Average Overweight (x) . | . . 1 Largest Inventory Capacity 15 | 8 15 15 Average Capacity 13 | 6 11 15 Most Carried 15 | 7 15 15 Average Carried 12 | 2 11 13 Final Capacity 15 | 8 15 15 Final Carried 15 | 7 15 12 Class Distribution -------------------- 96% | Mutant 3% | Derelict-Mutant Dominant Class ---------------- Mutant | -10/Materials Mutant | -10/Subcaves Resources | -11 -10 -10 ----------- Run | Yrd Mat Sub Matter Collected 1117 | 224 294 599 Remotely . | . . . Salvage Created 715 | 37 301 377 Parts 56 | 8 26 22 Haulers Intercepted . | . . . Recyclers Shooed 2 | . 2 . Parts Field Recycled . | . . . Retrieved Matter . | . . . Parts Self-Destructed 14 | . . 14 Prevented . | . . . Parts Restored . | . . . Kills | -11 -10 -10 ------- Run | Yrd Mat Sub Combat Hostiles Destroyed 25 | . 13 12 Melee 1 | . 1 . Guns 8 | . 4 4 Cannons 8 | . . 8 AOE 8 | . 8 . Classes Destroyed 7 | 2 4 1 Worker 2 | 1 1 . Tunneler 1 | 1 . . Operator 1 | . 1 . Watcher 3 | . 3 . Swarmer 6 | . 6 . Grunt 7 | . 7 . Subdweller 12 | . . 12 Best Kill Streak 6 | 1 6 2 Combat Bots Only 5 | . 5 2 Max Kills in Single Turn 3 | 1 3 1 Gunslinging . | . . . Exploded 3 | . 3 . Melee 1 | . 1 . Uniques/NPCs Destroyed . | . . . Combat | -11 -10 -10 -------- Run | Yrd Mat Sub Hostile Shots Fired 98 | . 47 51 Missed 20 | . 11 9 Hits 78 | . 36 42 Projectile 78 | . 36 42 Damage Taken 1333 | . 382 951 Core 253 | . 96 157 Absorbed by Shields . | . . . Core Remaining (%) 100 | 100 . . Volleys Fired 99 | 3 33 63 Largest 2 | 2 2 2 Hottest 80 | 60 60 80 Shots Fired 158 | 6 53 99 Gun 84 | 6 42 36 Cannon 63 | . . 63 Launcher 11 | . 11 . Special . | . . . Kinetic 126 | 3 33 90 Thermal 21 | 3 9 9 Explosive 11 | . 11 . Electromagnetic . | . . . Robot Hit Streak 17 | 2 12 17 Robot Miss Streak 2 | 1 2 2 Penetration Max . | . . . Secondary Targets . | . . . Shots Hit Robots 110 | 3 44 63 Core Hits 56 | 3 34 19 Critical Kills . | . . . Critical Parts Destroyed 1 | . 1 . Critical Strikes 6 | . 1 5 Destroy 2 | . 1 1 Blast 4 | . . 4 Melee Attacks 47 | . 22 25 Impact 47 | . 22 25 Slashing . | . . . Piercing . | . . . Sneak Attacks 2 | . 2 . Combat Hostiles . | . . . Follow-up Attacks . | . . . Damage Inflicted 2526 | 40 1387 1099 Guns 793 | 40 280 473 Cannons 626 | . . 626 Explosions 798 | . 798 . Melee 309 | . 309 . Ramming . | . . . Kinetic 1321 | 17 205 1099 Thermal 98 | 23 75 . Explosive 798 | . 798 . Electromagnetic . | . . . Impact 309 | . 309 . Slashing . | . . . Piercing . | . . . Highest Corruption . | . . . Average Corruption . | . . . Corruption Purged . | . . . Corruption Blocked . | . . . Overload Shots . | . . . Overflow Damage 47 | . 47 . Projectiles . | . . . Explosions . | . . . Melee 47 | . 47 . Knockbacks 8 | . 3 5 Impact 2 | . 2 . Kinetic 5 | . . 5 Secondary 1 | . 1 . Self-Inflicted Damage . | . . . Shots . | . . . Rammed . | . . . Targets Rammed . | . . . Kicked . | . . . Crushed . | . . . Highest Temperature 38 | 20 38 3 Average Temperature 14 | 13 15 3 Received Heat Transfer 264 | . 174 90 Siege Activations . | . . . Martial Activations . | . . . Shielding Activations . | . . . Robots Disrupted . | . . . Combat Hostiles . | . . . Robots Corrupted 1 | . 1 . Combat Hostiles . | . . . Parts Fried 1 | . 1 . Impact Corruptions 2 | . 2 . Robots Melted . | . . . Combat Hostiles . | . . . Parts Melted 1 | . . 1 Heat Transferred 225 | 50 175 . Parts Sabotaged . | . . . Parts Stolen . | . . . Parts Stripped . | . . . Power Chain Reactions . | . . . Alert | -11 -10 -10 ------- Run | Yrd Mat Sub Maximum Alert Level 1 | . 1 . Low Security (%) 93 | 100 93 . Level 1 6 | . 6 . Level 2 . | . . . Level 3 . | . . . Level 4 . | . . . Level 5 . | . . . High Security . | . . . Max Security . | . . . Peak Influence 212 | 5 212 . Initial 3 | . 3 . Average 94 | 1 103 . Influence Increases 458 | 10 448 . Destroy 0b10 Robot/C 260 | . 260 . Destroy 0b10 Robot/NC 35 | 10 25 . Destroy Leader 66 | . 66 . Successful Hack 15 | . 15 . Disable Machine 15 | . 15 . Destroy Structure 37 | . 37 . Lose Combat Pursuer 30 | . 30 . Influence Decreases 458 | 5 360 93 Entered New Map 47 | . 2 45 Time Decay 411 | 5 358 48 Squads Dispatched 3 | . 3 . Investigation 1 | . 1 . Extermination . | . . . Reinforcement 2 | . 2 . Assault . | . . . Garrison . | . . . Intercept . | . . . Searches Triggered . | . . . Construction Impeded . | . . . Haulers Reinforced . | . . . Active Scanning Responses . | . . . Cargo Convoy Interrupts . | . . . Stealth | -11 -10 -10 --------- Run | Yrd Mat Sub Distress Signals 3 | . 3 . Communications Jammed . | . . . Distress Signals . | . . . Times Spotted 34 | . 20 14 Peak Tracking Total 5 | . 5 2 Tactical Retreats 2 | . 2 . Traps | -11 -10 -10 ------- Run | Yrd Mat Sub Traps Triggered 2 | . 1 1 Indirectly . | . . . Trap Hack Attempts . | . . . Triggered . | . . . Disarmed . | . . . Reprogrammed . | . . . Reused 1 | . . 1 Traps Extracted . | . . . Installed 1 | . . 1 Triggered . | . . . Most Traps Carried 1 | . . 1 Machines | -11 -10 -10 ---------- Run | Yrd Mat Sub Machines Disabled 2 | . 1 1 Max in Single Turn 1 | . 1 1 Machines Repaired . | . . . Machines Dismantled . | . . . Machines Sabotaged . | . . . Overloaded Fab Kills . | . . . Hacking | -11 -10 -10 --------- Run | Yrd Mat Sub Machines Accessed 6 | . 5 1 Terminals 5 | . 5 . Fabricators . | . . . Repair Stations . | . . . Recycling Units . | . . . Scanalyzers . | . . . Garrison Access . | . . . Total Hacks 15 | . 12 3 Successful 7 | . 4 3 Failed 8 | . 8 . Catastrophic . | . . . Database Lockouts . | . . . Manual 4 | . 4 . Terminals 12 | . 12 . Fabricators . | . . . Repair Stations . | . . . Recycling Units . | . . . Scanalyzers . | . . . Garrison Access . | . . . Terminal Hacks 7 | . 4 3 Record 3 | . . 3 Prototype ID Bank 1 | . 1 . Locate Traps 1 | . 1 . Zone Layout 2 | . 2 . Fabricator Hacks . | . . . Repair Station Hacks . | . . . Recycling Unit Hacks . | . . . Scanalyzer . | . . . Garrison Access Hacks . | . . . Unauthorized Hacks . | . . . Terminals . | . . . Fabricators . | . . . Repair Stations . | . . . Recycling Units . | . . . Scanalyzers . | . . . Garrison Access . | . . . Data Cores Recovered . | . . . Used . | . . . Hacking Detections 5 | . 5 . Full Trace Events . | . . . Feedback Events . | . . . Feedback Blocked . | . . . Robot Schematics Acquired . | . . . Robots Built . | . . . Authchips . | . . . Time . | . . . Total Robot Build Rating . | . . . Part Schematics Acquired . | . . . Parts Built . | . . . Authchips . | . . . Time . | . . . Total Part Build Rating . | . . . Part Studies Acquired . | . . . Parts Repaired . | . . . Time . | . . . Parts Recycled . | . . . Recycled Matter . | . . . Retrieved Matter . | . . . Retrieved Components . | . . . Parts Scanalyzed . | . . . Part Schematics Acquired . | . . . Parts Damaged . | . . . Bothacking | -11 -10 -10 ------------ Run | Yrd Mat Sub Used RIF Installer . | . . . Robots Hacked . | . . . Non-combat . | . . . Combat . | . . . Robot Hacks Applied . | . . . Relay Couplers Released . | . . . Fabnet Peak Effective % . | . . . Robots Rewired . | . . . Allies Hacked . | . . . Hacks Repelled . | . . . Allies | -11 -10 -10 -------- Run | Yrd Mat Sub Total Allies . | . . . Largest Group . | . . . Highest-Rated Group . | . . . Highest-Rated Ally . | . . . Total Orders . | . . . Ally Attacks . | . . . Total Damage . | . . . Kills . | . . . Allies Corrupted . | . . . Allies Melted . | . . . Intel | -11 -10 -10 ------- Run | Yrd Mat Sub Active Infowar (turns) 3738 | 41 1117 2580 Seismic 3738 | 41 1117 2580 Robot Analysis Total . | . . . Derelict Logs Recovered 2 | . . 2 Drone Launches . | . . . Drone Recoveries . | . . . Exploration | -11 -10 -10 ------------- Run | Yrd Mat Sub Turns Passed 4132 | 112 1117 2903 Spaces Moved 2080 | 57 545 1478 Core 4 | 4 . . Treads 1432 | 53 545 834 Legs . | . . . Wheels 644 | . . 644 Hover . | . . . Flight . | . . . Fastest Speed 50 | 50 160 125 Average Speed 149 | 152 160 146 Slowest Speed 260 | 160 160 260 Overloaded Moves . | . . . Propulsion Burnouts . | . . . Robots Hopped . | . . . Potential Cave-ins . | . . . Cave-ins Triggered . | . . . Exploration Rate (%) 54 | 4 98 62 Regions Visited 2 Branch Regions 1 Pre-discovered Areas 2 | . . 2 Known Exits Taken . | . . . Unknown Exits Taken 2 | 1 1 . Scrap Searched 5 | . . 5 Spaces Dug 17 | . 6 11 Terrain Destroyed 52 | . 35 17 Melee 11 | . 6 5 Projectile 12 | . . 12 AOE 29 | . 29 . Terrain Rammed . | . . . Walls Destroyed . | . . . Machines Disabled . | . . . Actions | -11 -10 -10 --------- Run | Yrd Mat Sub Total 2852 | 74 702 2076 Wait 531 | . 64 467 Move 2078 | 56 544 1478 Hop . | . . . Pick Up 25 | 7 12 6 Fast Attach 9 | 7 . 2 Attach 3 | . . 3 Detach 2 | . . 2 Swap 40 | . 20 20 Drop 17 | 1 7 9 Fire 99 | 3 33 63 Melee 47 | . 22 25 Ram . | . . . Kick . | . . . Crush . | . . . Escape Stasis . | . . . Rewire . | . . . Trap 1 | . . 1 Miscellaneous . | . . . Route ------- -11/Scrapyard -10/Materials (discovered 6 exits: [*Mat x3] / [*Min x2] / *Sub) -10/Subcaves (discovered 2 exits: [*Mat x2]) History --------- Turn | Location | Event 2 | -11/Scrapyard | Met Revision 17 18 | -11/Scrapyard | Discovered new exit (range 16) 113 | -11/Scrapyard | Entered Materials 194 | -10/Materials | Discovered new exit (range 10) 317 | -10/Materials | Discovered new exit (range 12) 331 | -10/Materials | Build established: Mutant 475 | -10/Materials | Discovered new exit (range 7) 845 | -10/Materials | Discovered new exit (range 15) 971 | -10/Materials | Discovered new exit (range 6) 1221 | -10/Materials | Discovered new exit (range 7) 1230 | -10/Materials | Entered Subcaves 1231 | -10/Subcaves | Approached by a straggling Scientist 1403 | -10/Subcaves | Disturbed a concealed Subdweller 1466 | -10/Subcaves | Shifting Twisted Machinery released Shrapnel Trap 1474 | -10/Subcaves | Shifting Twisted Machinery released Sub. Monowheel 2159 | -10/Subcaves | Discovered new exit (range 9) 2242 | -10/Subcaves | A swath of the cavern ceiling suddenly collapsed 2379 | -10/Subcaves | Disturbed a concealed Subdweller 2518 | -10/Subcaves | Learned location of Zion (-7) 2518 | -10/Subcaves | Met a Zionite searching for "candidates" 2531 | -10/Subcaves | Shifting Twisted Machinery released Sub. Beam Cannon 2571 | -10/Subcaves | Learned location of Storage (-7) 3048 | -10/Subcaves | Core integrity fell below 50% 3055 | -10/Subcaves | Core integrity fell below 20% 3083 | -10/Subcaves | Lost 3 parts (2n1w) 3368 | -10/Subcaves | Shifting Twisted Machinery released Sub. Machine Gun 3543 | -10/Subcaves | Discovered new exit (range 14) 3544 | -10/Subcaves | Visited Clippyterm 3548 | -10/Subcaves | Learned Factory stockpile data 3840 | -10/Subcaves | Shifting Twisted Machinery released Mak. Spear 4056 | -10/Subcaves | Shifting Twisted Machinery released Lgt. Humpback 4133 | -10/Subcaves | Ambushed by Subdweller buried in earth 4133 | -10/Subcaves | Destroyed by 1H-Q33(R) with Subdweller Machine Gun Last Messages --------------- still manages to suggest unhelpful sample queries and responses. --DD-NU8 >>Record! "Finders Keepers" It looks like you're interested in reappropriating Complex 0b10 components, would you like help? Data stored: Factory stockpile data. >>Record! "Bogan" It looks like you're interested in the dark side, V4-D3R would be pleased, though I don't think they're in the habit of teaching apprentices. 03567_ Machine disabled. Mak. Spear falls loose from the Twisted Machinery. 03942_ Subatomizers dissect the Disposable Heat Sink. Lgt. Humpback falls loose from the Twisted Machinery. [Achievement: Do Not Disturb] Map ----- +----------------------------------------------------+ | ???# ## ## ##### # | | ???# #### #?#### #"" ## ### | | ???## ###??## ### #####??#"" ## ##?? | | ##??## ##??### ###?# #??#"X ##??? | | #??# ##?# #?### #??#"" ## ####???? | | ### ### #?# ##??#"""### #??????? | | ## ### #?## ##???##### ##??????? | | ### #?## ##???????# ##???????? | | ### #?# #??## ] ##??????# #????????? | | ??## #?# #?### & ##?????# ##????????? | | ???# ### ## #?# & ##???## #?????????? | | ???# ##??# ## ##?## & ##??# ##????????? | | ???###????#######???## ##?# #????###?? | | ?????????????????????##### #?# #??## ### | | ?????????????????????????# #?## ##?? | | ?????????????????????????# #?# ### | | ????????????????????????## ### ### | | ?????????????????######## | | ?????????????????# # | | ?????????????????### ## # | | ??????????????????????### ## # | | ???????????????????????## ###?## | | ?????????????????????### #??? | | ?????????????????????# ###? | | ?????????????????????## ## ## | | ??????????????????????## @ ####### # | | ???????????????????????#R###?????# ##### | | ???????????????????##?# #????????## ## ##??? | | ???????????????????# ####?????????##### ###? | | ????????????????????# #??????????###### ## | | ????????????????????## #?????????## #?## ## # | | ?????????????????????# ###???????# #?# #### | | ?????????????????????# #?????### #?## #??# | | ?????????????????????## #????## # ### #### # | | ?????????????????????## ###??# # # | | ??????????????????#### #### # | | ??????????????????# ## # | | ??????????????????# # ##### #### | | ??????????????????# ## ##### #### | | ??????????????????## ! ## # ## | | ???????????????????# ## ### | | ???????????????????# ## | ##?# | | ??????????????????## ## # # #?# | | ??????????????????# ########### | | ??????????????????## #??### #?# # | | ??????????????????# ## ! #??# ## ## | | ??????????????????##?### ## ##?## ### #? | | ???????????????????????##! #### #??# ##### #? | | ???????????????????????## ### #??## #???####? | | ??????????????????????## !## #?### #???????? | +----------------------------------------------------+ Best States ------------- Heat Dissipation 25 Coolant Potential 50 Energy Generation 10 Energy Capacity 250 Matter Stores 300 Matter Capacity 300 Sight Range 16 Terrain Scan Density 10 Armor Coverage 100 Evasion (%) 40 Recoil Reduction 2 Item Schematics ----------------- None Robot Schematics ------------------ None Fabricated ------------ Nothing Repaired ---------- Nothing Studied --------- None Alien Tech Used ----------------- None Achievements -------------- Do Not Disturb You Again Challenges ------------ None Game ------ Seed GreatFireAutominer Manual? 0 Play Time 00:44:42 Cumulative 649.5 hours Start 2026.01.30 @ 19:25:47 End 2026.01.30 @ 20:55:42 Sessions 3 Manual Loads 0 Difficulty Rogue Special Mode None Game No. 173 Rogue 173 Adventurer 0 Explorer 0 Win Type - Total 47 Types 32/0/6/3/1/1/1/2/0/1 Lore% 50 Gallery% 75 Achievement% 54 Wizard Run 0 Options --------- Layout 2 ASCII 1 Keyboard 1 Movement Numpad Keybinds 0 Fullscreen 2 Font 24/Smallcaps Map View 50x44 Zoom Use 0% Tactical HUD 1 Map Filters NONE Filters NONE Steam 1 RUN: 3840989d-29d9-43d0-bf42-87a045d3018a